[Event "Mitropa Cup Women 2019"]
[Site "Radenci"]
[Date "2019.05.31"]
[Round "5.7"]
[White "Choisy, Mathilde"]
[Black "Varga, Klara"]
[Result "1-0"]
[ECO "C03"]
[WhiteElo "2113"]
[BlackElo "2146"]
[Annotator "ChessBase"]
[PlyCount "51"]
[EventDate "2019.05.27"]
[EventType "team-tourn"]
[EventCountry "SLO"]
[SourceTitle "playchess.com"]
[Source "ChessBase"]
[SourceQuality "1"]
[WhiteTeam "France"]
[BlackTeam "Hungary"]
[WhiteTeamCountry "FRA"]
[BlackTeamCountry "HUN"]
[TimeControl "40/5400+30:1800+30"]

1. e4 {[%emt 0:00:00]} e6 {[%emt 0:00:00]} 2. d4 {[%emt 0:00:00]} d5 {[%emt 0:00:00]} 3. Nd2 {[%emt 0:00:00]} Be7 {[%emt 0:00:00]} 4. Ngf3 {[%emt 0:00:00]} Nf6 {[%emt 0:00:04]} 5. e5 {[%emt 0:00:02]} Nfd7 {[%emt 0:00:04]} 6. Bd3 {[%emt 0:00:15]} c5 {[%emt 0:00:06]} 7. c3 {[%emt 0:00:06]} b6 {[%emt 0:00:24]} 8. Ne4 {[%emt 0:03:26]} Ba6 {[%emt 0:05:56]} 9. Bxa6 {[%emt 0:02:31]} Nxa6 {[%emt 0:01:05]} 10. Nd6+ {[%emt 0:00:06]} Bxd6 {[%emt 0:01:47]} 11. exd6 {[%emt 0:00:04]} O-O {[%emt 0:02:15]} 12. Bg5 {[%emt 0:02:46]} Nf6 {[%emt 0:11:43]} 13. Ne5 {[%emt 0:00:25]} Qxd6 {[%emt 0:04:34]} 14. Bxf6 {[%emt 0:01:00]} gxf6 {[%emt 0:00:11]} 15. Qg4+ {[%emt 0:00:26]} Kh8 {[%emt 0:00:07]} 16. Qf4 {[%emt 0:00:43]} Qe7 {[%emt 0:17:20]} 17. Nc6 {[%emt 0:02:49]} e5 {[%emt 0:03:11]} 18. Nxe7 {[%emt 0:00:05]} exf4 {[%emt 0:00:05]} 19. O-O-O {[%emt 0:02:11]} Rfe8 {[%emt 0:02:57]} 20. Nxd5 {[%emt 0:04:25]} Rad8 {[%emt 0:00:26]} 21. dxc5 {[%emt 0:09:53]} f3 {[%emt 0:14:56]} 22. gxf3 {[%emt 0:07:03]} Nxc5 {[%emt 0:02:33]} 23. Nxf6 {[%emt 0:07:23]} Rxd1+ {[%emt 0:02:14]} 24. Rxd1 {[%emt 0:00:04]} Re2 {[%emt 0:00:50]} 25. Rg1 {[%emt 0:02:57]} Nd3+ {[%emt 0:00:45]} 26. Kd1 {[%emt 0:01:03]} 1-0

[Event "Mitropa Cup Women 2019"]
[Site "Radenci"]
[Date "2019.05.31"]
[Round "5.8"]
[White "Kovacs, Judit"]
[Black "Djidjeli, Sarah"]
[Result "1-0"]
[ECO "A16"]
[WhiteElo "2025"]
[BlackElo "2012"]
[Annotator "NA"]
[PlyCount "87"]
[EventDate "2019.05.27"]
[EventType "team-tourn"]
[EventCountry "SLO"]
[SourceTitle "playchess.com"]
[Source "ChessBase"]
[SourceQuality "1"]
[WhiteTeam "Hungary"]
[BlackTeam "France"]
[WhiteTeamCountry "HUN"]
[BlackTeamCountry "FRA"]
[TimeControl "40/5400+30:1800+30"]

1. Nf3 {[%emt 0:00:00]} Nf6 {[%emt 0:00:00]} 2. c4 {[%emt 0:00:00]} g6 {[%emt 0:00:00]} 3. Nc3 {[%emt 0:00:00]} Bg7 {[%emt 0:00:02]} 4. e4 {[%emt 0:00:00]} e5 {[%emt 0:00:11]} 5. g3 {[%emt 0:12:32]} Nc6 {[%emt 0:05:26]} 6. Bg2 {[%emt 0:00:25]} d6 {[%emt 0:00:43]} 7. h3 {[%emt 0:05:15]} O-O {[%emt 0:07:54]} 8. O-O {[%emt 0:01:27]} Nd7 {[%emt 0:02:41]} 9. d3 {[%emt 0:05:19]} Nc5 $11 {[%emt 0:00:27]} 10. Rb1 {[%emt 0:03:47]} a5 {[%emt 0:05:45]} 11. a3 {[%emt 0:02:15]} f5 {[%emt 0:20:56]} 12. b4 {[%emt 0:15:45]} axb4 {[%emt 0:00:14]} 13. axb4 {[%emt 0:00:09]} Ne6 {[%emt 0:03:54]} 14. b5 {[%emt 0:05:03]} Ncd4 {[%emt 0:01:15]} 15. Nxd4 {[%emt 0:08:56]} Nxd4 {[%emt 0:00:25]} 16. exf5 {[%emt 0:04:39]} gxf5 {[%emt 0:11:30]} 17. f4 {[%emt 0:06:53]} Kh8 {[%emt 0:06:43]} 18. Ne2 {[%emt 0:03:21]} Ne6 {[%emt 0:01:13]} 19. Bb2 {[%emt 0:00:16]} c6 {[%emt 0:03:29]} 20. bxc6 {[%emt 0:04:04]} bxc6 {[%emt 0:00:09]} 21. Kh2 {[%emt 0:02:09]} Qe8 {[%emt 0:03:02]} 22. Bc3 {[%emt 0:02:41]} Bd7 {[%emt 0:02:41]} 23. Bb4 {[%emt 0:00:44]} Qe7 {[%emt 0:05:24]} 24. fxe5 {[%emt 0:02:25]} Bxe5 {[%emt 0:00:07]} 25. d4 {[%emt 0:00:14]} Bg7 {[%emt 0:00:33]} 26. Re1 {[%emt 0:00:24]} Ng5 {[%emt 0:04:19]} 27. Nf4 {[%emt 0:04:16]} Ne4 {[%emt 0:01:59]} 28. Qh5 {[%emt 0:02:53]} Be8 {[%emt 0:00:34]} 29. Qd1 {[%emt 0:00:58]} c5 {[%emt 0:01:57]} 30. dxc5 {[%emt 0:04:40]} dxc5 {[%emt 0:00:07]} 31. Bd2 {[%emt 0:00:36]} Bf7 {[%emt 0:01:09]} 32. Qc2 {[%emt 0:00:24]} Rfe8 {[%emt 0:01:08]} 33. Nd5 {[%emt 0:01:54]} Bxd5 {[%emt 0:01:08]} 34. cxd5 {[%emt 0:00:03]} Qe5 {[%emt 0:00:33]} 35. Bxe4 {[%emt 0:01:24]} fxe4 {[%emt 0:00:08]} 36. Qxc5 {[%emt 0:00:17]} Ra2 {[%emt 0:00:38]} 37. Qe3 {[%emt 0:01:39]} Qd4 {[%emt 0:01:55]} 38. Rbd1 {[%emt 0:00:39]} Qxe3 {[%emt 0:04:54]} 39. Rxe3 {[%emt 0:00:02]} Bh6 {[%emt 0:00:07]} 40. Re2 {[%emt 0:00:00]} e3 {[%emt 0:00:00]} 41. Bc3+ {[%emt 0:01:07]} Kg8 {[%emt 0:01:21]} 42. Rxa2 {[%emt 0:00:07]} e2 {[%emt 0:00:29]} 43. Re1 {[%emt 0:00:34]} Rc8 {[%emt 0:00:40]} 44. Be5 {[%emt 0:00:34]} 1-0

[Event "Mitropa Cup Women 2019"]
[Site "Radenci"]
[Date "2019.05.31"]
[Round "5.9"]
[White "Unuk, Laura"]
[Black "Gueci, Tea"]
[Result "1/2-1/2"]
[ECO "A67"]
[WhiteElo "2265"]
[BlackElo "2251"]
[Annotator "ChessBase"]
[PlyCount "134"]
[EventDate "2019.05.27"]
[EventType "team-tourn"]
[EventCountry "SLO"]
[SourceTitle "playchess.com"]
[Source "ChessBase"]
[SourceQuality "1"]
[WhiteTeam "Slovenia"]
[BlackTeam "Italy"]
[WhiteTeamCountry "SLO"]
[BlackTeamCountry "ITA"]
[TimeControl "40/5400+30:1800+30"]

1. d4 {[%emt 0:00:00]} Nf6 {[%emt 0:00:00]} 2. c4 {[%emt 0:00:00]} c5 {[%emt 0:00:00]} 3. d5 {[%emt 0:00:15]} e6 {[%emt 0:00:00]} 4. Nc3 {[%emt 0:00:03]} exd5 {[%emt 0:00:00]} 5. cxd5 {[%emt 0:00:03]} d6 {[%emt 0:00:00]} 6. e4 {[%emt 0:00:38]} g6 {[%emt 0:00:20]} 7. f4 {[%emt 0:00:09]} Bg7 {[%emt 0:00:09]} 8. Bb5+ {[%emt 0:00:06]} Nfd7 {[%emt 0:00:09]} 9. Bd3 {[%emt 0:00:06]} Qh4+ {[%emt 0:00:27]} 10. g3 {[%emt 0:00:24]} Qe7 {[%emt 0:00:07]} 11. Nf3 {[%emt 0:00:17]} O-O {[%emt 0:04:02]} 12. O-O {[%emt 0:03:33]} Na6 {[%emt 0:01:47]} 13. Re1 {[%emt 0:00:35]} f6 {[%emt 0:09:32]} 14. Be3 {[%emt 0:09:33]} Nc7 {[%emt 0:03:36]} 15. a4 {[%emt 0:00:25]} a6 {[%emt 0:06:15]} 16. Rb1 {[%emt 0:00:53]} a5 {[%emt 0:11:46]} 17. h4 {[%emt 0:15:30]} Na6 {[%emt 0:05:45]} 18. h5 {[%emt 0:06:27]} Nb4 {[%emt 0:03:46]} 19. Bf1 {[%emt 0:00:51]} Nb6 {[%emt 0:03:05]} 20. hxg6 {[%emt 0:02:04]} hxg6 {[%emt 0:00:11]} 21. Nh4 {[%emt 0:07:43]} Qf7 {[%emt 0:02:10]} 22. Be2 {[%emt 0:00:45]} f5 {[%emt 0:03:05]} 23. Bf3 {[%emt 0:07:40]} Nc4 {[%emt 0:06:54]} 24. Bc1 {[%emt 0:08:02]} Bf6 {[%emt 0:07:39]} 25. Qe2 {[%emt 0:03:04]} fxe4 {[%emt 0:12:54]} 26. Nxe4 {[%emt 0:03:56]} Bxh4 {[%emt 0:02:35]} 27. gxh4 {[%emt 0:04:31]} Ne5 {[%emt 0:05:04]} 28. fxe5 {[%emt 0:05:26]} Qxf3 {[%emt 0:00:12]} 29. Qxf3 {[%emt 0:02:29]} Rxf3 {[%emt 0:00:05]} 30. e6 {[%emt 0:02:11]} Nxd5 {[%emt 0:01:48]} 31. Nxd6 {[%emt 0:00:05]} Rf6 {[%emt 0:05:21]} 32. Nxc8 {[%emt 0:03:05]} Rxc8 {[%emt 0:00:04]} 33. Bg5 {[%emt 0:00:03]} Rf5 {[%emt 0:01:06]} 34. Rbd1 {[%emt 0:01:15]} Re8 {[%emt 0:01:13]} 35. Re2 {[%emt 0:00:44]} Nc7 {[%emt 0:03:23]} 36. Rd6 {[%emt 0:02:19]} Nd5 {[%emt 0:01:41]} 37. Kh2 {[%emt 0:04:41]} Nf4 {[%emt 0:01:09]} 38. Re4 {[%emt 0:01:25]} Nh5 {[%emt 0:00:46]} 39. e7 {[%emt 0:03:18]} Kf7 {[%emt 0:00:24]} 40. Ree6 {[%emt 0:00:00]} Rf2+ {[%emt 0:00:00]} 41. Kg1 {[%emt 0:04:38]} Rxb2 {[%emt 0:08:01]} 42. Rxg6 {[%emt 0:00:46]} Rb1+ {[%emt 0:04:57]} 43. Kf2 {[%emt 0:00:16]} Rd1 {[%emt 0:00:37]} 44. Rb6 {[%emt 0:05:56]} c4 {[%emt 0:04:52]} 45. Rh6 {[%emt 0:01:15]} Ng7 {[%emt 0:06:58]} 46. Rbf6+ {[%emt 0:03:08]} Kg8 {[%emt 0:00:22]} 47. Rf8+ {[%emt 0:00:08]} Rxf8+ {[%emt 0:00:12]} 48. exf8=Q+ {[%emt 0:00:14]} Kxf8 {[%emt 0:00:04]} 49. Rh8+ {[%emt 0:01:23]} Kf7 {[%emt 0:00:33]} 50. Rc8 {[%emt 0:00:20]} Ne6 {[%emt 0:04:10]} 51. Be3 {[%emt 0:00:16]} Rb1 {[%emt 0:01:01]} 52. h5 {[%emt 0:02:26]} Rh1 {[%emt 0:04:44]} 53. h6 {[%emt 0:00:11]} Rh5 {[%emt 0:00:27]} 54. Rb8 {[%emt 0:01:53]} c3 {[%emt 0:00:49]} 55. Rxb7+ {[%emt 0:04:08]} Kg6 {[%emt 0:00:15]} 56. Rb6 {[%emt 0:00:46]} Kf7 {[%emt 0:00:33]} 57. Ke2 {[%emt 0:02:23]} c2 {[%emt 0:00:39]} 58. Kd3 {[%emt 0:03:12]} Nc5+ {[%emt 0:00:27]} 59. Kxc2 {[%emt 0:00:30]} Nxa4 {[%emt 0:00:01]} 60. Rc6 {[%emt 0:00:42]} Rh2+ {[%emt 0:00:38]} 61. Kb3 {[%emt 0:01:57]} Rh3 {[%emt 0:00:27]} 62. Rc7+ {[%emt 0:01:17]} Kf6 {[%emt 0:00:53]} 63. Kxa4 {[%emt 0:00:35]} Rxe3 {[%emt 0:00:05]} 64. h7 {[%emt 0:00:05]} Rh3 {[%emt 0:00:08]} 65. Kxa5 {[%emt 0:00:07]} Kg6 {[%emt 0:00:06]} 66. Kb5 {[%emt 0:00:04]} Rxh7 {[%emt 0:00:05]} 67. Rxh7 {[%emt 0:00:03]} Kxh7 {[%emt 0:00:05]} 1/2-1/2

[Event "Mitropa Cup Women 2019"]
[Site "Radenci"]
[Date "2019.05.31"]
[Round "5.10"]
[White "Santeramo, Alessia"]
[Black "Janzelj, Lara"]
[Result "1-0"]
[ECO "C95"]
[WhiteElo "2074"]
[BlackElo "2203"]
[Annotator "ChessBase"]
[PlyCount "145"]
[EventDate "2019.05.27"]
[EventType "team-tourn"]
[EventCountry "SLO"]
[SourceTitle "playchess.com"]
[Source "ChessBase"]
[SourceQuality "1"]
[WhiteTeam "Italy"]
[BlackTeam "Slovenia"]
[WhiteTeamCountry "ITA"]
[BlackTeamCountry "SLO"]
[TimeControl "40/5400+30:1800+30"]

1. e4 {[%emt 0:00:00]} e5 {[%emt 0:00:00]} 2. Nf3 {[%emt 0:00:00]} Nc6 {[%emt 0:00:00]} 3. Bb5 {[%emt 0:00:00]} a6 {[%emt 0:00:00]} 4. Ba4 {[%emt 0:00:00]} Nf6 {[%emt 0:00:00]} 5. O-O {[%emt 0:00:05]} Be7 {[%emt 0:00:07]} 6. Re1 {[%emt 0:00:07]} b5 {[%emt 0:00:04]} 7. Bb3 {[%emt 0:00:04]} d6 {[%emt 0:00:03]} 8. c3 {[%emt 0:00:10]} O-O {[%emt 0:00:05]} 9. h3 {[%emt 0:00:04]} Nb8 {[%emt 0:00:21]} 10. d4 {[%emt 0:00:14]} Nbd7 {[%emt 0:00:04]} 11. Nbd2 {[%emt 0:00:09]} Bb7 {[%emt 0:00:04]} 12. Bc2 {[%emt 0:00:06]} Re8 {[%emt 0:00:04]} 13. Nf1 {[%emt 0:00:09]} Bf8 {[%emt 0:00:05]} 14. Ng3 {[%emt 0:00:07]} g6 {[%emt 0:00:05]} 15. Bg5 {[%emt 0:00:08]} h6 {[%emt 0:00:15]} 16. Bd2 {[%emt 0:00:11]} c5 {[%emt 0:06:43]} 17. d5 {[%emt 0:00:54]} Bg7 {[%emt 0:01:35]} 18. a4 {[%emt 0:00:43]} c4 {[%emt 0:01:22]} 19. Nh2 {[%emt 0:00:13]} Nc5 {[%emt 0:04:13]} 20. Ng4 {[%emt 0:01:17]} Kh7 {[%emt 0:01:55]} 21. Qf3 {[%emt 0:00:26]} Nxg4 {[%emt 0:09:08]} 22. hxg4 {[%emt 0:00:11]} Qd7 {[%emt 0:01:36]} 23. Qe2 {[%emt 0:05:37]} Reb8 {[%emt 0:04:38]} 24. f3 {[%emt 0:05:41]} Bc8 {[%emt 0:05:49]} 25. a5 {[%emt 0:13:52]} Bf6 {[%emt 0:03:53]} 26. Kf2 {[%emt 0:06:27]} Qa7 {[%emt 0:04:01]} 27. Be3 {[%emt 0:00:29]} Bg5 {[%emt 0:00:51]} 28. Rh1 {[%emt 0:01:15]} Kg7 {[%emt 0:00:53]} 29. Rh3 {[%emt 0:12:48]} Bd7 {[%emt 0:01:45]} 30. Rah1 {[%emt 0:01:12]} Rh8 {[%emt 0:01:07]} 31. Nf1 {[%emt 0:08:01]} Rab8 {[%emt 0:08:44]} 32. g3 {[%emt 0:01:19]} Bxe3+ {[%emt 0:05:52]} 33. Nxe3 {[%emt 0:04:50]} h5 {[%emt 0:03:38]} 34. Kg2 {[%emt 0:12:05]} hxg4 {[%emt 0:01:39]} 35. fxg4 {[%emt 0:01:43]} Rxh3 {[%emt 0:00:17]} 36. Rxh3 {[%emt 0:00:05]} Qc7 {[%emt 0:03:52]} 37. Nf5+ {[%emt 0:06:49]} gxf5 {[%emt 0:08:47]} 38. gxf5 {[%emt 0:00:21]} Rg8 {[%emt 0:00:51]} 39. Qh5 {[%emt 0:04:46]} Kf8 {[%emt 0:00:23]} 40. Qh6+ {[%emt 0:00:00]} Ke8 {[%emt 0:00:00]} 41. Qh7 {[%emt 0:05:36]} Rf8 {[%emt 0:11:21]} 42. Qg7 {[%emt 0:00:09]} Bc8 {[%emt 0:01:50]} 43. g4 {[%emt 0:07:08]} Qd8 {[%emt 0:05:49]} 44. Rh6 {[%emt 0:07:03]} Kd7 {[%emt 0:03:05]} 45. Rf6 {[%emt 0:00:48]} Qe7 {[%emt 0:08:18]} 46. g5 {[%emt 0:01:09]} Ke8 {[%emt 0:03:33]} 47. Rh6 {[%emt 0:00:19]} Kd8 {[%emt 0:00:56]} 48. Kf3 {[%emt 0:09:15]} Nd7 {[%emt 0:02:30]} 49. Ke3 {[%emt 0:03:02]} Kc7 {[%emt 0:02:37]} 50. Bd1 {[%emt 0:00:35]} Qd8 {[%emt 0:00:37]} 51. f6 {[%emt 0:03:01]} Rg8 {[%emt 0:04:18]} 52. Qxf7 {[%emt 0:00:02]} Rxg5 {[%emt 0:00:12]} 53. Qe7 {[%emt 0:00:21]} Rg8 {[%emt 0:02:54]} 54. Bh5 {[%emt 0:02:08]} Rg3+ {[%emt 0:03:38]} 55. Bf3 {[%emt 0:01:14]} Rg8 {[%emt 0:02:08]} 56. f7 {[%emt 0:00:28]} Rf8 {[%emt 0:01:45]} 57. Qxd6+ {[%emt 0:00:05]} Kb7 {[%emt 0:00:03]} 58. Qxa6+ {[%emt 0:00:20]} Kb8 {[%emt 0:00:15]} 59. Qxb5+ {[%emt 0:00:19]} Ka8 {[%emt 0:00:38]} 60. Rc6 {[%emt 0:04:31]} Nb8 {[%emt 0:01:06]} 61. Rb6 {[%emt 0:00:40]} Bh3 {[%emt 0:03:23]} 62. d6 {[%emt 0:02:17]} Be6 {[%emt 0:00:53]} 63. Qxe5 {[%emt 0:00:14]} Rxf7 {[%emt 0:00:48]} 64. Qxe6 {[%emt 0:00:58]} Qg5+ {[%emt 0:00:06]} 65. Ke2 {[%emt 0:00:49]} Qf4 {[%emt 0:00:21]} 66. Qd5+ {[%emt 0:03:32]} Ka7 {[%emt 0:00:06]} 67. e5 {[%emt 0:00:08]} Qh2+ {[%emt 0:00:33]} 68. Bg2 {[%emt 0:01:57]} Qh5+ {[%emt 0:00:05]} 69. Ke1 {[%emt 0:00:27]} Qh4+ {[%emt 0:00:09]} 70. Kd1 {[%emt 0:00:24]} Qh5+ {[%emt 0:01:39]} 71. Kc1 {[%emt 0:00:12]} Nc6 {[%emt 0:00:04]} 72. Rxc6 {[%emt 0:00:16]} Qg5+ {[%emt 0:00:40]} 73. Kb1 {[%emt 0:00:34]} 1-0

[Event "Mitropa Cup Women 2019"]
[Site "Radenci"]
[Date "2019.05.31"]
[Round "5.11"]
[White "Urh, Zala"]
[Black "Andolfatto, Maria"]
[Result "1/2-1/2"]
[ECO "C42"]
[WhiteElo "2099"]
[BlackElo "2041"]
[Annotator "NA"]
[PlyCount "87"]
[EventDate "2019.05.27"]
[EventType "team-tourn"]
[EventCountry "SLO"]
[SourceTitle "playchess.com"]
[Source "ChessBase"]
[SourceQuality "1"]
[WhiteTeam "Slovenia"]
[BlackTeam "Italy"]
[WhiteTeamCountry "SLO"]
[BlackTeamCountry "ITA"]
[TimeControl "40/5400+30:1800+30"]

1. e4 {[%emt 0:00:00]} e5 {[%emt 0:00:00]} 2. Nf3 {[%emt 0:00:00]} Nf6 {[%emt 0:00:00]} 3. Nxe5 {[%emt 0:00:22]} d6 {[%emt 0:00:00]} 4. Nf3 {[%emt 0:00:07]} Nxe4 {[%emt 0:00:16]} 5. Nc3 {[%emt 0:00:16]} Nf6 {[%emt 0:00:15]} 6. d4 {[%emt 0:00:23]} Be7 {[%emt 0:00:22]} 7. Bd3 {[%emt 0:04:30]} O-O {[%emt 0:00:14]} 8. h3 {[%emt 0:00:25]} b6 {[%emt 0:00:19]} 9. O-O {[%emt 0:01:02]} Bb7 {[%emt 0:00:07]} 10. Re1 {[%emt 0:01:43]} Nbd7 {[%emt 0:00:48]} 11. Bf4 {[%emt 0:01:42]} Re8 {[%emt 0:00:37]} 12. Nd2 {[%emt 0:06:43]} a6 {[%emt 0:04:08]} 13. a4 {[%emt 0:02:26]} Nf8 {[%emt 0:06:07]} 14. Nde4 $11 {[%emt 0:05:42]} Ne6 {[%emt 0:06:57]} 15. Be3 {[%emt 0:01:10]} c5 {[%emt 0:12:09]} 16. dxc5 {[%emt 0:04:57]} d5 {[%emt 0:10:02]} 17. Nxf6+ {[%emt 0:06:05]} Bxf6 {[%emt 0:00:07]} 18. c6 {[%emt 0:00:59]} Bxc6 {[%emt 0:02:29]} 19. Bd2 {[%emt 0:03:04]} Bg5 {[%emt 0:15:33]} 20. Ne2 {[%emt 0:07:20]} d4 {[%emt 0:05:11]} 21. Ng3 {[%emt 0:03:03]} Bxd2 {[%emt 0:11:32]} 22. Qxd2 {[%emt 0:00:19]} Qh4 {[%emt 0:00:12]} 23. Be4 {[%emt 0:10:07]} Rec8 {[%emt 0:05:15]} 24. Ra3 {[%emt 0:07:29]} Rc7 {[%emt 0:05:35]} 25. Nf5 {[%emt 0:05:15]} Qf6 {[%emt 0:02:01]} 26. Bxc6 {[%emt 0:02:49]} Rxc6 {[%emt 0:00:11]} 27. Rf3 {[%emt 0:00:23]} Qd8 {[%emt 0:08:40]} 28. Rd3 {[%emt 0:04:07]} Qf6 {[%emt 0:01:47]} 29. Nxd4 {[%emt 0:09:37]} Nxd4 {[%emt 0:00:25]} 30. Rxd4 {[%emt 0:00:01]} Rxc2 {[%emt 0:00:53]} 31. Rde4 {[%emt 0:02:13]} Rcc8 {[%emt 0:01:05]} 32. Re7 {[%emt 0:02:33]} h6 {[%emt 0:01:00]} 33. b4 {[%emt 0:03:11]} Rd8 {[%emt 0:01:07]} 34. Qe2 {[%emt 0:01:16]} Rd4 {[%emt 0:00:33]} 35. Re4 {[%emt 0:01:19]} Rad8 {[%emt 0:00:39]} 36. Rxd4 {[%emt 0:02:36]} Qxd4 {[%emt 0:00:37]} 37. Rb1 {[%emt 0:01:26]} Qd3 {[%emt 0:00:24]} 38. Qxd3 {[%emt 0:01:01]} Rxd3 {[%emt 0:00:01]} 39. b5 {[%emt 0:00:19]} a5 {[%emt 0:01:13]} 40. Rc1 {[%emt 0:00:00]} Rd4 {[%emt 0:00:00]} 41. Rc8+ {[%emt 0:02:39]} Kh7 {[%emt 0:01:55]} 42. Rc6 {[%emt 0:00:16]} Rxa4 {[%emt 0:00:59]} 43. Rxb6 {[%emt 0:00:06]} Rb4 {[%emt 0:05:58]} 44. Rb8 {[%emt 0:00:16]} 1/2-1/2

[Event "Mitropa Cup Women 2019"]
[Site "Radenci"]
[Date "2019.05.31"]
[Round "5.12"]
[White "Raccanello, Marianna"]
[Black "Kuhar, Larisa"]
[Result "1-0"]
[ECO "B99"]
[WhiteElo "2019"]
[BlackElo "1930"]
[Annotator "NA"]
[PlyCount "127"]
[EventDate "2019.05.27"]
[EventType "team-tourn"]
[EventCountry "SLO"]
[SourceTitle "playchess.com"]
[Source "ChessBase"]
[SourceQuality "1"]
[WhiteTeam "Italy"]
[BlackTeam "Slovenia"]
[WhiteTeamCountry "ITA"]
[BlackTeamCountry "SLO"]
[TimeControl "40/5400+30:1800+30"]

1. e4 {[%emt 0:00:00]} c5 {[%emt 0:00:00]} 2. Nf3 {[%emt 0:00:00]} d6 {[%emt 0:00:00]} 3. d4 {[%emt 0:00:00]} cxd4 {[%emt 0:00:00]} 4. Nxd4 {[%emt 0:00:03]} Nf6 {[%emt 0:00:00]} 5. Nc3 {[%emt 0:00:04]} a6 {[%emt 0:00:06]} 6. Bg5 {[%emt 0:00:08]} e6 {[%emt 0:01:22]} 7. f4 {[%emt 0:00:09]} h6 {[%emt 0:01:52]} 8. Bh4 {[%emt 0:00:27]} Nbd7 {[%emt 0:01:51]} 9. Qf3 {[%emt 0:00:37]} Qc7 {[%emt 0:07:32]} 10. O-O-O {[%emt 0:00:43]} Be7 $14 {[%emt 0:12:07]} 11. g4 {[%emt 0:08:46]} g5 {[%emt 0:15:50]} 12. fxg5 {[%emt 0:09:50]} Ne5 {[%emt 0:00:41]} 13. Qg3 {[%emt 0:00:29]} Nfxg4 {[%emt 0:03:00]} 14. g6 {[%emt 0:04:30]} fxg6 {[%emt 0:07:21]} 15. Bh3 {[%emt 0:03:03]} h5 {[%emt 0:01:57]} 16. Bxg4 {[%emt 0:07:21]} Nxg4 {[%emt 0:04:48]} 17. Bxe7 {[%emt 0:06:39]} Qxe7 {[%emt 0:00:38]} 18. Nf3 {[%emt 0:00:03]} O-O {[%emt 0:22:29]} 19. h3 {[%emt 0:04:09]} Rxf3 {[%emt 0:06:05]} 20. Qxf3 {[%emt 0:00:16]} Ne5 {[%emt 0:00:17]} 21. Qg2 {[%emt 0:01:19]} b5 {[%emt 0:00:53]} 22. Qd2 {[%emt 0:01:02]} Nc4 {[%emt 0:04:20]} 23. Qh6 {[%emt 0:00:06]} Ne5 {[%emt 0:02:22]} 24. Rhg1 {[%emt 0:00:09]} b4 {[%emt 0:00:51]} 25. Ne2 {[%emt 0:01:55]} Bb7 {[%emt 0:02:13]} 26. Ng3 {[%emt 0:00:46]} Qh7 {[%emt 0:02:31]} 27. Qxh7+ {[%emt 0:00:56]} Kxh7 {[%emt 0:00:02]} 28. Rxd6 {[%emt 0:00:08]} Re8 {[%emt 0:00:14]} 29. Rgd1 {[%emt 0:03:43]} h4 {[%emt 0:01:46]} 30. Nf1 {[%emt 0:02:28]} Bxe4 {[%emt 0:01:18]} 31. Re1 {[%emt 0:00:08]} Bg2 {[%emt 0:00:11]} 32. Rxe5 {[%emt 0:00:05]} Bxf1 {[%emt 0:00:08]} 33. Rd4 {[%emt 0:00:11]} Kg7 {[%emt 0:01:07]} 34. Rxh4 {[%emt 0:00:39]} Kf6 {[%emt 0:00:31]} 35. Re3 {[%emt 0:00:07]} Bb5 {[%emt 0:00:33]} 36. Rxb4 {[%emt 0:00:08]} Bc6 {[%emt 0:00:31]} 37. Rf4+ {[%emt 0:01:43]} Kg5 {[%emt 0:00:27]} 38. Rg4+ {[%emt 0:00:04]} Kf5 {[%emt 0:00:14]} 39. Reg3 {[%emt 0:00:08]} Rg8 {[%emt 0:00:35]} 40. Rg5+ {[%emt 0:00:00]} Kf6 {[%emt 0:00:00]} 41. h4 {[%emt 0:01:22]} Be4 {[%emt 0:04:11]} 42. h5 {[%emt 0:00:49]} Rc8 {[%emt 0:10:14]} 43. c3 {[%emt 0:00:07]} gxh5 {[%emt 0:00:19]} 44. Rxh5 {[%emt 0:00:06]} Bf5 {[%emt 0:00:49]} 45. Re3 {[%emt 0:00:48]} Kg6 {[%emt 0:03:30]} 46. Rh1 {[%emt 0:00:31]} Rc4 {[%emt 0:00:54]} 47. b3 {[%emt 0:00:43]} Rf4 {[%emt 0:00:24]} 48. Rd1 {[%emt 0:02:47]} a5 {[%emt 0:08:38]} 49. a4 {[%emt 0:03:32]} Rf2 {[%emt 0:03:08]} 50. Rd2 {[%emt 0:00:05]} Rf1+ {[%emt 0:00:05]} 51. Kb2 {[%emt 0:00:03]} Kg5 {[%emt 0:02:41]} 52. Re5 {[%emt 0:01:19]} Kf4 {[%emt 0:00:36]} 53. Rde2 {[%emt 0:06:42]} Rb1+ {[%emt 0:01:13]} 54. Ka2 {[%emt 0:00:17]} Rc1 {[%emt 0:00:13]} 55. c4 {[%emt 0:01:11]} Bd3 {[%emt 0:01:16]} 56. Re1 {[%emt 0:01:54]} Rxe1 {[%emt 0:00:31]} 57. Rxe1 {[%emt 0:00:05]} e5 {[%emt 0:00:14]} 58. Kb2 {[%emt 0:00:19]} Bf5 {[%emt 0:00:44]} 59. Kc3 {[%emt 0:00:25]} e4 {[%emt 0:00:34]} 60. Kd4 {[%emt 0:00:09]} Kf3 {[%emt 0:00:30]} 61. c5 {[%emt 0:00:33]} Be6 {[%emt 0:00:31]} 62. Re3+ {[%emt 0:00:11]} Kf4 {[%emt 0:00:22]} 63. Rxe4+ {[%emt 0:00:07]} Kf5 {[%emt 0:00:06]} 64. Rxe6 {[%emt 0:00:21]} 1-0

[Event "Mitropa Cup Women 2019"]
[Site "Radenci"]
[Date "2019.05.31"]
[Round "5.13"]
[White "Ragger, Anna-Christina"]
[Black "Georgescu, Lena"]
[Result "1/2-1/2"]
[ECO "C78"]
[WhiteElo "2272"]
[BlackElo "2191"]
[Annotator "ChessBase"]
[PlyCount "63"]
[EventDate "2019.05.27"]
[EventType "team-tourn"]
[EventCountry "SLO"]
[SourceTitle "playchess.com"]
[Source "ChessBase"]
[SourceQuality "1"]
[WhiteTeam "Austria"]
[BlackTeam "Switzerland"]
[WhiteTeamCountry "AUT"]
[BlackTeamCountry "SUI"]
[TimeControl "40/5400+30:1800+30"]

1. e4 {[%emt 0:00:00]} e5 {[%emt 0:00:00]} 2. Nf3 {[%emt 0:00:00]} Nc6 {[%emt 0:00:00]} 3. Bb5 {[%emt 0:00:00]} a6 {[%emt 0:00:00]} 4. Ba4 {[%emt 0:00:00]} Nf6 {[%emt 0:00:00]} 5. O-O {[%emt 0:00:01]} b5 {[%emt 0:00:00]} 6. Bb3 {[%emt 0:00:05]} Bc5 {[%emt 0:00:02]} 7. Re1 {[%emt 0:03:15]} d6 {[%emt 0:03:01]} 8. c3 {[%emt 0:01:48]} O-O {[%emt 0:04:25]} 9. a4 {[%emt 0:04:40]} Bg4 {[%emt 0:08:21]} 10. h3 {[%emt 0:01:38]} Bh5 {[%emt 0:08:52]} 11. d3 {[%emt 0:04:55]} h6 {[%emt 0:01:19]} 12. Nbd2 {[%emt 0:08:21]} b4 {[%emt 0:00:27]} 13. a5 {[%emt 0:01:41]} Qb8 {[%emt 0:03:51]} 14. g4 {[%emt 0:11:54]} Qa7 {[%emt 0:06:09]} 15. gxh5 {[%emt 0:02:31]} Bxf2+ {[%emt 0:00:22]} 16. Kh2 {[%emt 0:04:08]} Bxe1 {[%emt 0:02:41]} 17. Nxe1 {[%emt 0:01:39]} Qc5 {[%emt 0:09:45]} 18. cxb4 {[%emt 0:15:16]} Qf2+ {[%emt 0:13:38]} 19. Ng2 {[%emt 0:03:30]} Nd4 {[%emt 0:00:07]} 20. Qe1 {[%emt 0:08:36]} Qxe1 {[%emt 0:00:28]} 21. Nxe1 {[%emt 0:00:08]} Rfb8 {[%emt 0:00:08]} 22. Bd1 {[%emt 0:02:09]} Rxb4 {[%emt 0:01:30]} 23. Ra3 {[%emt 0:05:11]} Rab8 {[%emt 0:04:24]} 24. Nef3 {[%emt 0:02:28]} Ne6 {[%emt 0:08:23]} 25. Nc4 {[%emt 0:04:10]} Nxe4 {[%emt 0:06:53]} 26. b3 {[%emt 0:01:16]} Nf6 {[%emt 0:02:45]} 27. Bd2 {[%emt 0:00:21]} R4b7 {[%emt 0:00:33]} 28. b4 {[%emt 0:00:29]} Nd5 {[%emt 0:02:21]} 29. Nh4 {[%emt 0:08:24]} Nd4 {[%emt 0:03:28]} 30. Nf3 {[%emt 0:01:42]} Ne6 {[%emt 0:00:57]} 31. Nh4 {[%emt 0:00:04]} Nd4 {[%emt 0:00:05]} 32. Nf3 {[%emt 0:00:03]} 1/2-1/2